bitfinex-derivatives/quotes_BTCF0:USTF0_20251103
["timestamp","ask_amount","ask_price","bid_price","bid_amount"]
[1762202902214,0.3608,106560.0,106550.0,0.59749058]
[1762202903007,0.3608,106560.0,106550.0,0.465524]
[1762202903203,1.8608,106570.0,106560.0,0.1389153]
[1762202903410,1.9546565,106570.0,106560.0,0.1389153]
[1762202903808,1.8608,106570.0,106560.0,0.1389153]
[1762202904009,1.8608,106570.0,106560.0,0.1523553]
[1762202904411,0.3608,106570.0,106560.0,0.28432188]
[1762202904618,0.40724,106570.0,106560.0,0.1523553]
[1762202905511,0.40524,106570.0,106560.0,0.1523553]
[1762202905812,0.04444,106560.0,106550.0,0.1166407]
[1762202906017,0.41866,106560.0,106550.0,0.4655641]
[1762202906711,0.38219,106560.0,106550.0,0.4655641]
[1762202907121,0.4990965,106570.0,106560.0,0.1389153]
[1762202907508,0.1517253,106560.0,106550.0,0.37269]
[1762202907713,0.5125253,106560.0,106550.0,0.4665641]
[1762202908110,0.41866,106560.0,106550.0,0.4665641]
[1762202908312,0.3608,106560.0,106550.0,0.59853068]
[1762202908510,0.40538,106570.0,106560.0,0.1507852]
[1762202908809,0.40538,106570.0,106560.0,0.1375252]
[1762202909117,0.4992364,106570.0,106560.0,0.1375252]
[1762202910220,0.4992364,106570.0,106560.0,0.0938652]
[1762202910607,0.04458,106560.0,106550.0,0.4431461]
[1762202910914,0.5119052,106560.0,106550.0,0.4641661]
[1762202911115,0.41804,106560.0,106550.0,0.4641661]
[1762202912019,0.5119049,106560.0,106550.0,0.001]
[1762202912218,0.64387148,106560.0,106550.0,0.001]
[1762202912415,0.5119049,106560.0,106550.0,0.001]
[1762202912715,0.1384714,106530.0,106520.0,0.1375562]
[1762202912912,0.05724,106520.0,106510.0,0.4642433]
[1762202913108,0.41804,106520.0,106510.0,0.4642433]
[1762202913312,0.40538,106520.0,106510.0,0.4642433]
[1762202913714,0.04458,106520.0,106510.0,0.4642433]
[1762202914215,0.4546916,106530.0,106520.0,0.1155402]
[1762202914216,0.3608,106530.0,106520.0,0.1155402]
[1762202914414,0.40538,106530.0,106520.0,0.1506102]
[1762202914619,0.3608,106530.0,106520.0,0.28257678]
[1762202915118,0.41804,106540.0,106530.0,0.1375514]
[1762202915313,0.41804,106540.0,106530.0,0.4644314]
[1762202917217,0.42004,106540.0,106530.0,0.4644314]
[1762202918223,0.5139226,106540.0,106530.0,0.4644314]
[1762202918710,0.64588918,106540.0,106530.0,0.04366]
[1762202918915,0.1384714,106530.0,106520.0,0.137554]
[1762202919117,0.4992714,106530.0,106520.0,0.464354]
[1762202919322,0.4992714,106530.0,106520.0,0.137554]
[1762202919515,0.4992714,106530.0,106520.0,0.464354]
[1762202919716,0.40538,106530.0,106520.0,0.464354]
[1762202920424,0.63123798,106530.0,106520.0,0.3268]
[1762202920719,0.1511402,106520.0,106510.0,0.1375635]
[1762202920915,0.41804,106520.0,106510.0,0.4643235]
[1762202922212,0.5119402,106520.0,106510.0,0.4643235]
[1762202922422,0.41804,106520.0,106510.0,0.4643235]
[1762202923917,0.5119402,106520.0,106510.0,0.4643235]
[1762202924621,0.41804,106520.0,106510.0,0.1375635]
[1762202924822,0.41804,106520.0,106510.0,0.4642835]
[1762202925420,0.3825,106530.0,106520.0,0.05863]
[1762202925626,0.70026,106540.0,106530.0,0.1396914]
[1762202925627,0.4169,106540.0,106530.0,0.1396914]
[1762202925817,0.4169,106540.0,106530.0,0.4663314]
[1762202926020,0.5107826,106540.0,106530.0,0.4663314]
[1762202926225,0.4169,106540.0,106530.0,0.4663314]
[1762202926726,0.4189,106540.0,106530.0,0.4663314]
[1762202927122,0.64474918,106540.0,106530.0,0.4663314]
[1762202927328,0.64474918,106540.0,106530.0,0.4205314]
[1762202927728,0.64474918,106540.0,106530.0,0.4437214]
[1762202928731,0.64474918,106540.0,106530.0,0.4205314]
[1762202929629,0.64474918,106540.0,106530.0,0.0938914]
[1762202929824,0.3628,106540.0,106530.0,0.4662514]
[1762202930029,0.40624,106540.0,106530.0,0.4662514]
[1762202930230,0.41907,106540.0,106530.0,0.4662514]
[1762202930628,0.5129526,106540.0,106530.0,0.4662514]
[1762202931035,0.70695317,106540.0,106530.0,0.1396914]
[1762202931331,0.1501702,106520.0,106510.0,0.1397046]
[1762202931531,0.5109702,106520.0,106510.0,0.4663046]
[1762202932228,0.8717702,106520.0,106510.0,0.0458]
[1762202932428,0.8717702,106520.0,106500.0,0.14292276]
[1762202932429,0.137349,106510.0,106500.0,0.14292276]
[1762202932634,0.498149,106510.0,106500.0,0.46952276]
[1762202932827,0.69214957,106510.0,106500.0,0.14292276]
[1762202933028,0.69214957,106510.0,106500.0,0.14292436]
[1762202933225,0.498149,106510.0,106500.0,0.14292436]
[1762202933427,0.40424,106510.0,106500.0,0.14292436]
[1762202933935,0.04444,106510.0,106500.0,0.15575436]
[1762202934133,0.0227,106510.0,106500.0,0.15575436]
[1762202934326,0.04444,106510.0,106500.0,0.15575436]
[1762202934730,0.04444,106510.0,106500.0,0.51655436]
[1762202934924,0.001,106510.0,106500.0,0.71055493]
[1762202935129,0.001,106510.0,106500.0,0.76062843]
[1762202935325,0.40424,106530.0,106520.0,0.05863]
[1762202935528,0.0217,106530.0,106520.0,0.4792102]
[1762202935730,0.41707,106540.0,106530.0,0.1396914]
[1762202935936,0.05627,106540.0,106530.0,0.1396914]
[1762202936726,0.41707,106540.0,106530.0,0.0938914]
[1762202936932,0.04344,106530.0,106520.0,0.1397002]
[1762202937139,0.40424,106530.0,106520.0,0.4663802]
[1762202937432,0.4981314,106530.0,106520.0,0.4663802]
[1762202937639,0.4981314,106530.0,106520.0,0.4437702]
[1762202937841,0.40424,106530.0,106520.0,0.4205802]
[1762202938042,0.40424,106530.0,106520.0,0.4792102]
[1762202939339,0.40424,106530.0,106520.0,0.5292837]
[1762202939841,0.40424,106530.0,106520.0,0.5164537]
[1762202940432,0.4981314,106530.0,106520.0,0.4225535]
[1762202940744,0.4981314,106530.0,106510.0,0.1897783]
[1762202940745,0.1501702,106520.0,106510.0,0.1897783]
[1762202941042,0.5109702,106520.0,106510.0,0.4225135]
[1762202941233,0.5109702,106520.0,106510.0,0.5164225]
[1762202941635,0.5109702,106520.0,106510.0,0.466349]
[1762202941836,0.41707,106520.0,106510.0,0.466349]
[1762202942033,0.40424,106520.0,106510.0,0.467349]
[1762202942232,0.40424,106520.0,106510.0,0.5174225]
[1762202942437,0.04344,106520.0,106510.0,0.5174225]
[1762202942640,0.40424,106530.0,106520.0,0.1525302]
[1762202942933,0.05627,106540.0,106530.0,0.1396914]
[1762202943138,0.05627,106540.0,106530.0,0.51698101]
[1762202943332,0.04344,106540.0,106530.0,0.51698101]
[1762202943634,0.5109526,106540.0,106530.0,0.42308961]
[1762202943836,0.5109526,106540.0,106530.0,0.05060961]
[1762202944042,0.5109526,106540.0,106530.0,0.37728961]
[1762202944234,0.5109526,106540.0,106530.0,0.32668]
[1762202944634,0.5109526,106540.0,106530.0,0.4205714]
[1762202945033,0.3825,106540.0,106530.0,0.19030101]
[1762202945343,0.3608,106550.0,106540.0,0.1396826]
[1762202945344,0.40424,106550.0,106540.0,0.1396826]
[1762202945735,0.40424,106550.0,106540.0,0.0458]
[1762202945736,0.4981138,106550.0,106540.0,0.0458]
[1762202946043,0.1501526,106540.0,106530.0,0.05060961]
[1762202946242,0.5109526,106540.0,106530.0,0.32672]
[1762202946447,0.1373314,106530.0,106520.0,0.51706341]
[1762202946747,0.4981314,106530.0,106520.0,0.52989341]
[1762202948145,0.4981314,106530.0,106520.0,0.19030341]
[1762202948349,0.40424,106530.0,106520.0,0.19030341]
[1762202949039,0.3618,106530.0,106520.0,0.20313341]
[1762202949241,0.3618,106530.0,106520.0,0.1525238]
[1762202949645,0.3835,106530.0,106520.0,0.1525238]
[1762202949946,0.3835,106530.0,106520.0,0.4792838]
[1762202950346,0.3825,106530.0,106520.0,0.4792838]
[1762202950843,0.40424,106540.0,106530.0,0.1396914]
[1762202951049,0.04344,106540.0,106530.0,0.19030807]
[1762202951448,0.40424,106540.0,106530.0,0.19030807]
[1762202952154,0.40524,106540.0,106530.0,0.19030807]
[1762202952746,0.41807,106540.0,106530.0,0.19030807]
[1762202953250,0.5119526,106540.0,106530.0,0.19030807]
[1762202953455,0.5119526,106540.0,106530.0,0.05061667]
[1762202953847,0.1373314,106530.0,106520.0,0.51726977]
[1762202954050,0.4981314,106530.0,106520.0,0.51726977]
[1762202954246,0.4981314,106530.0,106520.0,0.53009977]
[1762202954448,0.4981314,106530.0,106520.0,0.51726977]
[1762202954948,0.001,106540.0,106530.0,0.1379214]
[1762202955155,0.41856,106560.0,106550.0,0.1379038]
[1762202955350,0.41856,106560.0,106550.0,0.51590554]
[1762202956256,0.4059,106590.0,106580.0,0.1378774]
[1762202956457,0.4059,106590.0,106580.0,0.4669974]
[1762202957352,0.4059,106590.0,106580.0,0.4440374]
[1762202957653,0.4059,106590.0,106580.0,0.4669974]
[1762202957859,0.4059,106590.0,106580.0,0.4806274]
[1762202958059,0.4059,106590.0,106580.0,0.53122914]
[1762202958357,0.4059,106590.0,106580.0,0.4806274]
[1762202958544,0.0481,106590.0,106580.0,0.4806274]
[1762202958743,0.4089,106590.0,106580.0,0.4806274]
[1762202958946,0.5027386,106590.0,106580.0,0.32912]
[1762202959159,0.0451,106570.0,106560.0,0.20212674]
[1762202959354,0.4059,106570.0,106560.0,0.53108674]
[1762202959756,0.3608,106580.0,106570.0,0.1378861]
[1762202959960,0.3608,106580.0,106570.0,0.38232799]
[1762202960158,0.4089,106590.0,106580.0,0.1506973]
[1762202960456,0.4089,106590.0,106580.0,0.4797373]
[1762202960666,0.0481,106590.0,106580.0,0.4797373]
[1762202961368,0.0451,106590.0,106580.0,0.4797373]
[1762202962055,0.0481,106590.0,106580.0,0.4797373]
[1762202962253,0.4089,106590.0,106580.0,0.1506973]
[1762202962460,0.4089,106590.0,106580.0,0.4796173]
[1762202962962,0.0481,106590.0,106580.0,0.4796173]
[1762202964677,0.05813,106580.0,106570.0,0.1378802]
[1762202964862,0.41893,106580.0,106570.0,0.0938562]
[1762202965069,0.41893,106580.0,106570.0,0.4669662]
[1762202965369,0.4059,106580.0,106570.0,0.4669662]
[1762202965765,0.5127773,106580.0,106560.0,0.107489]
[1762202965970,0.5127773,106580.0,106570.0,0.32908]
[1762202966163,0.8755773,106580.0,106570.0,0.32908]
[1762202966370,0.8755773,106580.0,106570.0,0.4669661]
[1762202966673,0.8755773,106580.0,106570.0,0.4440061]
[1762202968175,0.8755773,106580.0,106570.0,0.4229361]
[1762202968777,0.8755773,106580.0,106570.0,0.4459061]
[1762202969874,0.8755773,106580.0,106570.0,0.0938561]
[1762202970072,0.8755774,106580.0,106570.0,0.1388861]
[1762202970379,0.78173,106580.0,106570.0,0.1388861]
[1762202970568,0.06013,106580.0,106570.0,0.1388861]
[1762202970871,0.4079,106580.0,106570.0,0.1388861]
[1762202971063,0.002,106580.0,106570.0,0.1388861]
[1762202971262,0.002,106580.0,106570.0,0.33288667]
[1762202971476,0.002,106580.0,106570.0,0.69368667]
[1762202971671,0.8318368,106610.0,106600.0,0.1388597]
[1762202971872,0.8636368,106610.0,106600.0,0.1388597]
[1762202972072,0.8636368,106610.0,106600.0,0.1167997]
[1762202972279,0.8636368,106610.0,106600.0,0.1388597]
[1762202972473,0.8636368,106610.0,106600.0,0.1167997]
[1762202972676,0.04521,106590.0,106580.0,0.1388773]
[1762202972882,0.40601,106590.0,106580.0,0.4682373]
[1762202973372,0.40601,106590.0,106580.0,0.4810573]
[1762202974179,0.04521,106590.0,106580.0,0.4810573]
[1762202974378,0.02196,106590.0,106580.0,0.8428573]
[1762202975584,0.02196,106590.0,106580.0,0.4820573]
[1762202975776,0.37464,106600.0,106590.0,0.0938386]
[1762202975982,0.41985,106600.0,106590.0,0.1388686]
[1762202976183,0.5136798,106600.0,106590.0,0.1388686]
[1762202976484,0.41985,106600.0,106590.0,0.1388686]
[1762202978185,0.40601,106600.0,106590.0,0.1388686]
[1762202978573,0.04521,106600.0,106590.0,0.4996686]
[1762202978773,0.02196,106600.0,106590.0,0.4996686]
[1762202979179,0.003,106610.0,106600.0,0.1526097]
[1762202979374,0.003,106610.0,106600.0,0.4816497]
[1762202979774,0.003,106610.0,106600.0,1.03645027]
[1762202979970,0.003,106610.0,106600.0,0.8424497]
[1762202981083,0.004,106610.0,106600.0,0.8424497]
[1762202981781,0.04921,106610.0,106600.0,0.8424497]
[1762202981978,0.004,106610.0,106600.0,0.8424497]
[1762202984380,0.004,106610.0,106600.0,1.27097027]
[1762202984585,0.38325,106630.0,106620.0,0.1482521]
[1762202984889,0.40655,106630.0,106620.0,0.4770121]
[1762202985582,0.5003533,106630.0,106620.0,0.4676221]
[1762202985980,0.0597,106640.0,106630.0,0.1388533]
[1762202986180,0.4205,106640.0,106630.0,0.1388533]
[1762202987982,0.7491,106640.0,106630.0,0.1388533]
[1762202988788,0.8428945,106640.0,106630.0,0.1388533]
[1762202989785,0.5142945,106640.0,106630.0,0.1388533]
[1762202989986,0.8428545,106640.0,106630.0,0.1388533]
[1762202990176,0.74906,106640.0,106630.0,0.1388533]
[1762202990781,0.4205,106640.0,106630.0,0.1388533]
[1762202991284,0.7489,106640.0,106630.0,0.1388533]
[1762202991485,0.4205,106640.0,106630.0,0.1388533]
[1762202991688,0.74886,106640.0,106630.0,0.1388533]
[1762202992080,0.8426545,106640.0,106630.0,0.1388533]
[1762202992681,0.8426545,106640.0,106630.0,0.0938033]
[1762202992893,0.8426545,106640.0,106630.0,0.1159933]
[1762202993390,0.97468372,106640.0,106630.0,0.1159933]
[1762202993594,0.97468372,106640.0,106630.0,0.0938033]
[1762202993796,0.8426545,106640.0,106630.0,0.0938033]
[1762202993982,0.8426545,106640.0,106630.0,0.1159933]
[1762202994290,0.74886,106640.0,106630.0,0.1388533]
[1762202994890,0.4205,106640.0,106630.0,0.1388533]
[1762202995090,0.74874,106640.0,106630.0,0.1388533]
[1762202995291,0.74866,106640.0,106630.0,0.1388533]
[1762202996889,0.73463,106640.0,106630.0,0.1525133]
[1762202997292,0.40655,106640.0,106630.0,0.1525133]
[1762202998094,0.40655,106640.0,106630.0,0.28454252]
[1762202998696,0.42025,106650.0,106640.0,0.1525045]
[1762202998888,0.04875,106650.0,106640.0,0.28453372]
[1762202999082,0.0627,106650.0,106640.0,0.28453372]
[1762202999287,0.0627,106650.0,106640.0,0.1525045]
[1762202999991,0.0637,106650.0,106640.0,0.1525045]
[1762203000190,0.0597,106640.0,106620.0,0.42490132]
[1762203000395,0.01395,106640.0,106630.0,0.1166633]
[1762203000693,0.5142945,106640.0,106630.0,0.1388533]
[1762203000888,0.4205,106640.0,106630.0,0.1388533]
[1762203001289,0.5142945,106640.0,106630.0,0.1388533]
[1762203001595,0.4205,106640.0,106630.0,0.1388533]
[1762203001993,0.37775,106650.0,106630.0,0.28454252]
[1762203002294,0.003,106650.0,106640.0,0.69577514]
[1762203002489,0.04875,106650.0,106640.0,0.69577514]
[1762203002891,0.003,106650.0,106640.0,0.69577514]
[1762203003093,0.4205,106670.0,106660.0,0.138827]
[1762203003483,0.0597,106660.0,106650.0,0.4668357]
[1762203003785,0.1395357,106650.0,106640.0,0.1408427]
[1762203003984,0.1395357,106650.0,106640.0,0.002]
[1762203003985,0.64631492,106650.0,106640.0,0.002]
[1762203004398,0.88075492,106650.0,106640.0,0.002]
[1762203004693,0.04575,106620.0,106610.0,0.52548602]
[1762203004888,0.02245,106620.0,106610.0,0.52548602]
[1762203005095,0.40655,106630.0,106620.0,0.1525221]
[1762203005887,0.04575,106630.0,106620.0,0.1525221]
[1762203006099,0.40655,106630.0,106620.0,0.1525221]
[1762203006301,0.04575,106630.0,106620.0,0.1535221]
[1762203006592,0.5003533,106630.0,106620.0,0.1535221]
[1762203006989,0.4205,106630.0,106620.0,0.1535221]
[1762203007184,0.5143033,106630.0,106620.0,0.1398621]
[1762203007383,0.64633252,106630.0,106620.0,0.001]
[1762203007588,0.64633252,106630.0,106620.0,0.02319]
[1762203007790,0.5143033,106630.0,106620.0,0.1398621]
[1762203008390,0.4215,106630.0,106620.0,0.1388621]
[1762203008590,0.001,106630.0,106620.0,0.69579264]
[1762203008791,0.001,106630.0,106620.0,0.93027264]
[1762203008998,0.001,106630.0,106620.0,0.64535132]
[1762203009203,0.4205,106660.0,106650.0,0.1388357]
[1762203009392,0.0597,106660.0,106650.0,0.189359]
[1762203009899,0.4205,106660.0,106650.0,0.0505233]
[1762203010108,0.0597,106640.0,106630.0,0.2062128]
[1762203010400,0.4205,106640.0,106630.0,0.1893674]
[1762203010594,0.55252922,106640.0,106630.0,0.1893723]
[1762203010901,0.4205,106640.0,106630.0,0.095569]
[1762203011291,0.4205,106640.0,106630.0,0.1388533]
[1762203011792,0.02245,106630.0,106620.0,0.5104558]
[1762203011996,0.40655,106630.0,106620.0,0.5176611]
[1762203013203,0.40655,106630.0,106620.0,0.5186611]
[1762203015198,0.40655,106630.0,106620.0,0.424849]
[1762203015199,0.5003533,106630.0,106620.0,0.424849]
[1762203015404,0.5003533,106630.0,106620.0,0.5186611]
[1762203015601,0.7348333,106630.0,106620.0,0.04653655]
[1762203015902,0.05899,106600.0,106590.0,0.2045127]
[1762203016102,0.05899,106600.0,106590.0,0.5653127]
[1762203016301,0.05899,106600.0,106590.0,0.2045127]
[1762203016500,0.04576,106600.0,106590.0,0.5653127]
[1762203016700,0.3608,106610.0,106600.0,0.1150097]
[1762203016904,0.04576,106610.0,106600.0,0.1472097]
[1762203017098,0.5003809,106610.0,106600.0,0.38238]
[1762203017306,0.05899,106600.0,106590.0,0.0673644]
[1762203017505,0.05899,106600.0,106590.0,0.02118]
[1762203017506,0.5136197,106600.0,106590.0,0.02118]
[1762203017698,0.64564892,106600.0,106590.0,0.04331]
[1762203017904,0.64464892,106600.0,106590.0,0.04331]
[1762203018107,0.64464892,106600.0,106590.0,0.1371485]
[1762203018412,0.1395985,106590.0,106580.0,0.37554961]
[1762203018596,0.95850772,106590.0,106580.0,0.00319961]
[1762203018796,0.96807462,106590.0,106580.0,0.00319961]
[1762203019205,0.05586,106560.0,106550.0,0.2045428]
[1762203019504,0.04576,106560.0,106550.0,0.1371784]
[1762203020101,0.73568,106570.0,106560.0,0.150305]
[1762203020412,9.785e-05,106570.0,106560.0,0.511105]
[1762203020602,9.785e-05,106570.0,106560.0,0.97221422]
[1762203020904,0.73564,106590.0,106580.0,0.09474955]
[1762203021212,1.1902785,106590.0,106570.0,0.093851]
[1762203021508,0.40656,106580.0,106570.0,0.137161]
[1762203021812,0.04576,106590.0,106580.0,0.1502874]
[1762203022110,0.7358,106610.0,106600.0,0.1502698]
[1762203022308,0.7358,106610.0,106600.0,0.05644]
[1762203022508,0.7358,106610.0,106600.0,0.04331]
[1762203022712,0.7358,106610.0,106600.0,0.1371398]
[1762203023410,0.40656,106610.0,106600.0,0.61157902]
[1762203023602,0.40656,106610.0,106600.0,0.4795498]
[1762203023805,0.63241012,106610.0,106600.0,0.32928]
[1762203023999,0.63241012,106610.0,106590.0,0.1371483]
[1762203024000,0.05899,106600.0,106590.0,0.1371483]
[1762203024205,0.41979,106600.0,106590.0,0.1371483]
[1762203025308,0.42079,106600.0,106590.0,0.1371483]
[1762203025608,0.40756,106600.0,106590.0,0.1371483]
[1762203025807,0.04676,106600.0,106590.0,0.26917752]
[1762203026008,0.04576,106590.0,106580.0,0.4663973]
[1762203026215,0.40656,106590.0,106580.0,0.4663973]
[1762203026418,0.5003986,106590.0,106580.0,0.4442673]
[1762203026616,0.5003986,106590.0,106580.0,0.4442674]
[1762203026813,0.5003986,106590.0,106580.0,0.35042]
[1762203027020,0.04576,106570.0,106560.0,0.4794647]
[1762203027610,0.4177,106580.0,106570.0,0.1397961]
[1762203028619,0.40447,106590.0,106580.0,0.1537473]
[1762203029005,0.40447,106590.0,106580.0,0.4829073]
[1762203029211,0.40447,106590.0,106580.0,0.61493652]
[1762203029516,0.03521,106600.0,106590.0,0.1397785]
[1762203029820,0.0569,106600.0,106590.0,0.1397785]
[1762203030120,0.4177,106600.0,106590.0,0.1397785]
[1762203030719,0.4187,106600.0,106590.0,0.1397785]
[1762203031714,0.5125297,106600.0,106590.0,0.1397785]
[1762203032118,0.4187,106600.0,106590.0,0.1397785]
[1762203032315,0.5125297,106600.0,106590.0,0.1397785]
[1762203032819,0.4187,106600.0,106590.0,0.1397785]
[1762203033409,0.5125297,106600.0,106590.0,0.1397785]
[1762203033610,0.5125297,106600.0,106580.0,0.4689431]
[1762203033611,0.04367,106590.0,106580.0,0.4689431]
[1762203033805,0.4983085,106590.0,106580.0,0.3751]
[1762203034107,0.02198,106570.0,106560.0,0.4677905]
[1762203034307,0.4983261,106570.0,106560.0,0.02265]
[1762203034619,0.0569,106560.0,106550.0,0.4687665]
[1762203034822,0.40447,106560.0,106550.0,0.4687665]
[1762203035121,0.498335,106560.0,106550.0,0.4687665]
[1762203035320,0.40447,106560.0,106550.0,0.4687665]
[1762203035819,0.4177,106560.0,106550.0,0.4687665]
[1762203036014,0.40447,106560.0,106550.0,0.4687665]
[1762203036414,0.511565,106560.0,106550.0,0.4687665]
[1762203036818,0.511565,106560.0,106550.0,0.1398065]
[1762203037021,0.04367,106550.0,106540.0,0.87276667]
[1762203037321,0.04067,106550.0,106540.0,0.89605667]
[1762203037521,0.40147,106550.0,106540.0,0.52212667]
[1762203037926,0.39847,106550.0,106540.0,0.53608667]
[1762203038620,0.39947,106550.0,106540.0,0.54008667]
[1762203038819,0.39947,106550.0,106540.0,0.48971168]
[1762203039215,0.39947,106550.0,106540.0,0.54008667]
[1762203039623,0.39947,106550.0,106540.0,0.52612667]
[1762203039819,0.39947,106550.0,106540.0,0.47575168]
[1762203040020,0.39947,106550.0,106540.0,0.48971168]
[1762203040622,0.03867,106550.0,106540.0,0.48971168]
[1762203041221,0.04067,106550.0,106540.0,0.48671168]
[1762203041617,0.003,106550.0,106540.0,0.6187409]
[1762203042023,0.003,106550.0,106540.0,1.02991589]
[1762203042229,0.40447,106580.0,106570.0,0.1397962]
[1762203042528,0.04367,106590.0,106580.0,0.1537474]
[1762203042826,0.04367,106590.0,106580.0,0.64657662]
[1762203043926,0.002,106590.0,106580.0,0.64657662]
[1762203044125,0.02398,106590.0,106580.0,0.64657662]
[1762203044327,0.02498,106590.0,106580.0,0.64757662]
[1762203044828,0.41449,106620.0,106610.0,0.1368012]
[1762203045020,0.41628,106620.0,106610.0,0.1368012]
[1762203045219,0.5100924,106620.0,106610.0,0.1368012]
[1762203046120,0.04316,106610.0,106600.0,0.479704]
[1762203046326,0.40396,106610.0,106600.0,0.479704]
[1762203047025,0.04316,106610.0,106600.0,0.840504]
[1762203047224,0.04316,106610.0,106600.0,0.89090331]
[1762203047625,0.04316,106610.0,106600.0,0.53010331]
[1762203047823,0.04316,106610.0,106600.0,0.479704]
[1762203048026,0.04616,106610.0,106600.0,0.480704]
[1762203048326,0.5007813,106610.0,106600.0,0.001]
[1762203048622,0.40696,106610.0,106600.0,0.1378101]
[1762203048829,0.04616,106610.0,106600.0,0.1515101]
[1762203049330,0.40696,106610.0,106600.0,0.1515101]
[1762203049524,0.40596,106610.0,106600.0,0.1505101]
[1762203051027,0.04516,106610.0,106600.0,0.1505101]
[1762203051524,0.002,106610.0,106600.0,0.64333932]
[1762203051729,0.002,106610.0,106600.0,0.69373863]
[1762203052427,0.3608,106630.0,106620.0,0.05668]
[1762203052628,0.38206,106630.0,106620.0,0.4796925]
[1762203052821,0.4977637,106630.0,106620.0,0.4796925]
[1762203053024,0.4977637,106630.0,106620.0,0.4659925]
[1762203053422,0.40396,106630.0,106620.0,0.4659925]
[1762203053621,0.40796,106630.0,106620.0,0.4806925]
[1762203053919,0.5017637,106630.0,106620.0,0.4669925]
[1762203054321,0.40796,106630.0,106620.0,0.4669925]
[1762203054521,0.40796,106630.0,106620.0,0.4806925]
[1762203055930,0.04716,106630.0,106620.0,0.4806925]
[1762203056927,0.38506,106650.0,106640.0,0.1153848]
[1762203057124,0.40696,106650.0,106640.0,0.4794748]
[1762203057325,0.40696,106650.0,106640.0,0.8402748]
[1762203057326,0.04616,106650.0,106640.0,0.8402748]
[1762203057526,0.04616,106650.0,106640.0,1.03393414]
[1762203057527,0.02426,106650.0,106640.0,1.03393414]
[1762203057828,0.003,106650.0,106640.0,0.8402748]
[1762203058037,0.02426,106650.0,106640.0,0.8402748]
[1762203058324,0.04616,106650.0,106640.0,0.8402748]
[1762203058723,0.04616,106650.0,106640.0,1.03393414]
[1762203058922,0.003,106650.0,106640.0,1.03393414]
[1762203059123,0.003,106650.0,106640.0,0.8402748]
[1762203059420,0.008,106650.0,106640.0,0.8412748]
[1762203059925,0.02426,106650.0,106640.0,1.03393414]
[1762203060119,0.02526,106650.0,106640.0,1.03393414]
[1762203060322,0.40796,106650.0,106640.0,0.4794748]
[1762203060622,0.04716,106650.0,106640.0,0.8402748]
[1762203060821,0.501746,106650.0,106640.0,0.4794748]
[1762203061028,0.501746,106650.0,106640.0,0.37198]
[1762203061333,0.501746,106650.0,106640.0,0.1367748]
[1762203061630,0.501746,106650.0,106640.0,0.4658148]
[1762203062032,0.501746,106650.0,106620.0,0.42489764]
[1762203062225,0.04316,106630.0,106620.0,0.5112924]
[1762203062425,0.4977636,106630.0,106620.0,0.1504924]
[1762203062728,0.40396,106630.0,106620.0,0.4794924]
[1762203062925,0.4175,106640.0,106630.0,0.1367836]
[1762203063127,0.5112948,106640.0,106630.0,0.1367836]
[1762203063629,0.5112948,106640.0,106630.0,0.04298]
[1762203063832,0.5112948,106640.0,106630.0,0.1367836]
[1762203064434,0.5122948,106640.0,106630.0,0.04298]
[1762203064734,0.5122948,106640.0,106630.0,0.1367836]
[1762203064922,0.40496,106640.0,106630.0,0.1367836]
[1762203065120,0.001,106640.0,106630.0,0.1367836]
[1762203065327,0.001,106640.0,106630.0,0.69124294]
[1762203065525,0.02226,106640.0,106630.0,0.69124294]
[1762203065730,0.02226,106640.0,106630.0,0.4975836]
[1762203065926,0.04416,106640.0,106630.0,0.4975836]
[1762203066137,0.0567,106640.0,106630.0,0.4985836]
[1762203066330,0.0567,106640.0,106630.0,0.4666236]
[1762203066632,0.0567,106640.0,106630.0,0.4656236]
[1762203066831,0.1504948,106640.0,106630.0,0.4656236]
[1762203067433,0.1524948,106640.0,106630.0,0.4656236]
[1762203067832,0.002,106640.0,106630.0,0.8264236]
[1762203068329,0.04516,106640.0,106630.0,0.8264236]
[1762203068534,0.04516,106640.0,106630.0,0.4656236]
[1762203068941,0.0567,106640.0,106630.0,0.4656236]
[1762203069326,0.40696,106650.0,106640.0,0.1504748]
[1762203070240,0.500746,106650.0,106640.0,0.1504748]
[1762203070532,0.1504948,106640.0,106630.0,0.37182]
[1762203070740,0.02126,106630.0,106620.0,0.34242]
[1762203070928,0.1505124,106620.0,106610.0,0.09337764]
[1762203071130,0.1369812,106610.0,106600.0,0.89046304]
[1762203071331,0.04316,106610.0,106600.0,0.89046304]
[1762203071632,0.4270217,106620.0,106610.0,0.1368012]
[1762203071928,0.5113,106640.0,106630.0,0.1367836]
[1762203072134,0.5103,106640.0,106630.0,0.1367836]
[1762203072534,0.1369636,106630.0,106620.0,0.4225682]
[1762203072735,0.40396,106630.0,106620.0,0.4655482]
[1762203073641,0.40396,106630.0,106620.0,0.4792482]
[1762203073846,0.4977636,106630.0,106620.0,0.4225682]
[1762203074135,0.40396,106630.0,106620.0,0.4792482]
[1762203075136,0.40496,106630.0,106620.0,0.4792482]
[1762203075739,0.39442,106640.0,106630.0,0.1168336]
[1762203075936,0.41624,106640.0,106630.0,0.1391036]
[1762203076133,0.4067,106650.0,106640.0,0.1390948]
[1762203076440,0.0459,106650.0,106640.0,0.4809348]
[1762203076640,0.0459,106650.0,106640.0,0.53133244]
[1762203076842,0.4067,106650.0,106640.0,0.51809244]
[1762203077144,0.5004861,106650.0,106640.0,0.51809244]
[1762203077343,0.4067,106650.0,106640.0,0.51809244]
[1762203077733,0.4067,106650.0,106640.0,0.53133244]
[1762203077939,0.5004861,106650.0,106640.0,0.53133244]
[1762203078140,0.5004861,106650.0,106640.0,0.49582244]
[1762203078336,0.5014861,106650.0,106640.0,0.4454248]
[1762203079241,0.4077,106650.0,106640.0,0.4676948]
[1762203079441,0.5024861,106650.0,106640.0,0.4676948]
[1762203080233,0.4087,106650.0,106640.0,0.4676948]
[1762203080635,0.5024861,106650.0,106640.0,0.4676948]
[1762203081038,0.02108,106640.0,106630.0,0.16722574]
[1762203081345,0.5102649,106640.0,106630.0,0.51813574]
[1762203082546,0.41747,106640.0,106630.0,0.51813574]
[1762203082747,0.5112648,106640.0,106630.0,0.51813574]
[1762203083446,0.41747,106640.0,106630.0,0.51813574]
[1762203083643,0.5112648,106640.0,106630.0,0.51813574]
[1762203084450,0.41747,106640.0,106630.0,0.51813574]
[1762203084851,0.5112648,106640.0,106630.0,0.51813574]